fUSD/lending_fUSD_20250826
["ID","MTS","AMOUNT","RATE_DAILY","PERIOD"]
[381431092,1756194644653,-500.0,0.00026301,2]
[381431093,1756194644663,-150.35765461,0.00026301,2]
[381431094,1756194644673,-500.0,0.00026301,2]
[381431096,1756194644683,-500.0,0.00026301,2]
[381431097,1756194644693,-150.0,0.00026301,2]
[381431098,1756194644703,-500.0,0.00026301,2]
[381431099,1756194644713,-500.0,0.00026301,2]
[381431100,1756194644724,-150.0,0.00026301,2]
[381431102,1756194644734,-500.0,0.00026301,2]
[381431103,1756194644745,-150.0,0.00026301,2]
[381431104,1756194644755,-150.0,0.00026301,2]
[381431105,1756194644764,-500.0,0.00026301,2]
[381431107,1756194644774,-500.0,0.00026301,2]
[381431108,1756194644784,-273.86541611,0.00026301,2]
[381431109,1756194644794,-500.0,0.00026302,2]
[381431110,1756194644803,-500.0,0.00026302,2]
[381431111,1756194644814,-500.0,0.00026302,2]
[381431113,1756194644823,-1514.0,0.00026302,2]
[381431114,1756194644833,-2273.33,0.00026328,7]
[381431115,1756194644849,-400.6,0.00026395,2]
[381431116,1756194644859,-2000.0,0.00026416,2]
[381431118,1756194644869,-217.7069003,0.00026416,2]
[381431119,1756194644879,-2000.0,0.00026416,2]
[381431120,1756194644890,-600.0,0.00026548,2]
[381431121,1756194644899,-500.0,0.00026575,2]
[381431123,1756194644914,-500.0,0.00026575,2]
[381431124,1756194644924,-500.0,0.00026575,2]
[381431125,1756194644933,-500.0,0.00026575,2]
[381431126,1756194644943,-150.0,0.00026575,2]
[381431127,1756194644952,-500.0,0.00026575,2]
[381431129,1756194644962,-500.0,0.00026575,2]
[381431130,1756194644972,-150.0,0.00026575,2]
[381431131,1756194644982,-500.0,0.00026575,2]
[381431132,1756194644992,-150.45272974,0.00026575,2]
[381431133,1756194645002,-201.76080023,0.00026575,2]
[381431135,1756194645012,-500.0,0.00026575,2]
[381431136,1756194645021,-500.0,0.00026575,2]
[381431137,1756194645032,-500.0,0.00026576,2]
[381431138,1756194645042,-500.0,0.00026576,2]
[381431140,1756194645051,-500.0,0.00026576,2]
[381431141,1756194645060,-1514.0,0.00026576,2]
[381431142,1756194645070,-150.0,0.00026576,2]
[381431143,1756194645079,-500.0,0.00026576,2]
[381431144,1756194645089,-500.0,0.00026576,2]
[381431146,1756194645101,-2047.31,0.000266,7]
[381431147,1756194645110,-806.73141447,0.00026604,2]
[381431148,1756194645120,-448.71,0.00026676,2]
[381431149,1756194645129,-161.32887874,0.00026722,2]
[381431151,1756194645139,-1017.28475,0.0002674,2]
[381431152,1756194645149,-1017.28475,0.0002678,2]
[381431153,1756194645158,-543.23099146,0.00026816,2]
[381431154,1756194645168,-500.0,0.00026849,2]
[381431155,1756194645179,-500.0,0.00026849,2]
[381431157,1756194645189,-609.89327915,0.00026849,2]
[381431158,1756194645198,-500.0,0.00026849,2]
[381431159,1756194645207,-151.29383802,0.00026849,2]
[381431160,1756194645221,-500.0,0.00026849,2]
[381431162,1756194645235,-500.0,0.00026849,2]
[381431163,1756194645245,-253.41542723,0.00026849,2]
[381431164,1756194645255,-555.61648622,0.00026849,2]
[381431165,1756194645264,-500.0,0.00026849,2]
[381431166,1756194645273,-500.0,0.00026849,2]
[381431168,1756194645283,-500.0,0.0002685,2]
[381431169,1756194645293,-500.0,0.0002685,2]
[381431170,1756194645302,-500.0,0.0002685,2]
[381431171,1756194645311,-1514.0,0.0002685,2]
[381431173,1756194645321,-238.86460862,0.0002685,2]
[381431174,1756194645331,-500.0,0.0002685,2]
[381431175,1756194645340,-500.0,0.0002685,2]
[381431176,1756194645351,-2500.0,0.00026964,2]
[381431177,1756194645361,-1500.0,0.00026964,2]
[381431179,1756194645377,-31092.44631105,0.0002699,6]
[381431180,1756194645399,-151.0,0.00026999,4]
[381431181,1756194645418,-156.587,0.00026999,4]
[381431183,1756194645438,-162.380719,0.00026999,4]
[381431184,1756194645456,-168.3888056,0.00026999,4]
[381431185,1756194645466,-174.61919141,0.00026999,4]
[381431186,1756194645477,-181.08010149,0.00026999,4]
[381431187,1756194645486,-187.78006525,0.00026999,4]
[381431190,1756194645496,-194.72792766,0.00026999,4]
[381431191,1756194645508,-201.93286099,0.00026999,4]
[381431192,1756194645517,-209.40437684,0.00026999,4]
[381431193,1756194645527,-217.15233878,0.00026999,4]
[381431195,1756194645536,-225.18697532,0.00026999,4]
[381431196,1756194645546,-233.51889341,0.00026999,4]
[381431197,1756194645555,-250.87042766,0.00026999,4]
[381431198,1756194645564,-391.0,0.00027,2]
[381431199,1756194645573,-300.0,0.00027,2]
[381431201,1756194645583,-844.63891918,0.00027,3]
[381431202,1756194645595,-1157.4,0.00027,7]
[381431203,1756194645604,-165.7,0.00027,16]
[381431204,1756194645614,-2000.0,0.00027009,2]
[381431207,1756194645623,-2000.0,0.00027009,2]
[381431208,1756194645633,-2000.0,0.00027009,2]
[381431209,1756194645643,-2000.0,0.00027009,2]
[381431210,1756194645652,-2000.0,0.00027009,2]
[381431211,1756194645662,-2000.0,0.00027009,2]
[381431213,1756194645671,-2000.0,0.00027009,2]
[381431214,1756194645680,-193488.28326044,0.0002701,2]
[381431215,1756194645690,-2365.7551572,0.00027012,2]
[381431216,1756194645700,-642.2838086,0.00027014,2]
[381431218,1756194645711,-229.9386126,0.00027014,2]
[381431219,1756194645720,-1017.28475,0.0002703,2]
[381431220,1756194645729,-1500.0,0.00027073,2]
[381431221,1756194645739,-2142.51,0.00027113,6]
[381431222,1756194645748,-500.0,0.00027123,2]
[381431224,1756194645758,-500.0,0.00027123,2]
[381431225,1756194645767,-176.47561258,0.00027123,2]
[381431226,1756194645778,-500.0,0.00027123,2]
[381431227,1756194645787,-500.0,0.00027123,2]
[381431229,1756194645796,-500.0,0.00027123,2]
[381431230,1756194645806,-500.0,0.00027123,2]
[381431231,1756194645815,-1000.0,0.00027123,2]
[381431232,1756194645824,-262.49,0.00027123,4]
[381431233,1756194645834,-3600.18,0.00027123,2]
[381431235,1756194645844,-500.0,0.00027124,2]
[381431236,1756194645854,-500.0,0.00027124,2]
[381431237,1756194645863,-500.0,0.00027124,2]
[381431238,1756194645873,-1514.0,0.00027124,2]
[381431240,1756194645883,-500.0,0.00027124,2]
[381431241,1756194645892,-500.0,0.00027124,2]
[381431242,1756194645902,-1256.0,0.00027128,2]
[381431243,1756194645916,-3374.0,0.00027128,2]
[381431245,1756194645926,-2031.0,0.00027128,2]
[381431246,1756194645935,-926.0,0.00027128,2]
[381431247,1756194645946,-1658.0,0.00027128,2]
[381431248,1756194645955,-1298.0,0.00027128,2]
[381431249,1756194645965,-566.0,0.00027128,2]
[381431251,1756194645975,-599.0,0.00027128,2]
[381431252,1756194645985,-1173.0,0.00027128,2]
[381431253,1756194645995,-895.0,0.00027128,2]
[381431254,1756194646004,-6146.0,0.00027128,2]
[381431255,1756194646014,-4155.0,0.00027128,2]
[381431257,1756194646023,-718.0,0.00027128,2]
[381431258,1756194646033,-21104.0,0.00027128,2]
[381431259,1756194646045,-946.01872522,0.00027151,2]
[381431260,1756194646055,-344.91441206,0.00027175,2]
[381431262,1756194646064,-416.03518578,0.00027175,2]
[381431263,1756194646073,-690.0,0.0002718,2]
[381431264,1756194646083,-1017.28476,0.0002728,2]
[381431265,1756194646093,-400.6,0.00027285,2]
[381431267,1756194646105,-1057.85,0.000273,2]
[381431268,1756194646115,-150.0,0.0002739,2]
[381431269,1756194646125,-4017.37632054,0.0002739,2]
[381431271,1756194646135,-7935.77383357,0.0002739,2]
[381431273,1756194646148,-3168.14303687,0.0002739,2]
[381431276,1756194646167,-1500.0,0.00027394,7]
[381431278,1756194646177,-3000.0,0.00027394,7]
[381431280,1756194646187,-500.0,0.00027397,2]
[381431291,1756194646496,-500.0,0.00027397,2]
[381431292,1756194646506,-500.0,0.00027397,2]
[381431294,1756194646516,-500.0,0.00027397,2]
[381431295,1756194646525,-315.59172657,0.00027397,2]
[381431296,1756194646535,-515.85806894,0.00027397,2]
[381431297,1756194646544,-500.0,0.00027397,2]
[381431298,1756194646553,-500.0,0.00027397,2]
[381431300,1756194646562,-500.0,0.00027397,2]
[381431301,1756194646572,-500.0,0.00027397,2]
[381431302,1756194646581,-500.0,0.00027397,2]
[381431303,1756194646591,-500.0,0.00027397,2]
[381431305,1756194646603,-500.0,0.00027397,2]
[381431306,1756194646612,-643.32135571,0.00027397,2]
[381431307,1756194646621,-500.0,0.00027397,2]
[381431308,1756194646631,-500.0,0.00027397,2]
[381431309,1756194646641,-1500.0,0.00027397,16]
[381431311,1756194646651,-551.04,0.00027397,80]
[381431312,1756194646661,-700.0,0.00027397,2]
[381431313,1756194646671,-300.0,0.00027397,2]
[381431314,1756194646681,-18591.98,0.00027397,2]
[381431316,1756194646692,-506.98,0.00027397,2]
[381431317,1756194646703,-155.05657824,0.00027397,5]
[381431318,1756194646712,-500.0,0.00027398,2]
[381431319,1756194646723,-500.0,0.00027398,2]
[381431321,1756194646734,-500.0,0.00027398,2]
[381431322,1756194646745,-1514.0,0.00027398,2]
[381431323,1756194646755,-500.0,0.00027398,2]
[381431324,1756194646766,-500.0,0.00027398,2]
[381431326,1756194646776,-16500.0,0.000274,30]
[381431327,1756194646786,-271.0,0.0002748,30]
[381431328,1756194646796,-196.56260482,0.000275,2]
[381431329,1756194646805,-536.87664653,0.000275,2]
[381431330,1756194646815,-2047.31,0.000275,7]
[381431332,1756194646826,-55884.58223863,0.00027512,5]
[381431333,1756194646836,-1319.48991129,0.00027512,5]
[381431334,1756194646846,-1017.28475,0.0002753,2]
[381431335,1756194646855,-500.0,0.00027671,2]
[381431337,1756194646865,-500.0,0.00027671,2]
[381431338,1756194646875,-472.45392393,0.00027671,2]
[381431339,1756194646885,-500.0,0.00027671,2]
[381431340,1756194646895,-500.0,0.00027672,2]
[381431342,1756194646906,-500.0,0.00027672,2]
[381431343,1756194646918,-500.0,0.00027672,2]
[381431344,1756194646927,-1514.0,0.00027672,2]
[381431345,1756194646937,-500.0,0.00027672,2]
[381431346,1756194646947,-500.0,0.00027672,2]
[381431348,1756194646956,-31092.44631105,0.00027687,8]
[381431349,1756194646968,-2273.33,0.0002777,7]
[381431350,1756194646979,-1017.28475,0.0002778,2]
[381431351,1756194646989,-753.39463,0.000278,2]
[381431353,1756194646999,-161.32887874,0.00027842,2]
[381431354,1756194647009,-6294.58211479,0.00027852,2]
[381431355,1756194647019,-155.9612237,0.00027873,5]
[381431356,1756194647030,-113890.82248471,0.000279,3]
[381431358,1756194647039,-27693.47051518,0.000279,3]
[381431359,1756194647049,-39050.89,0.000279,2]
[381431360,1756194647059,-731.50777169,0.000279,2]
[381431361,1756194647068,-1100.0,0.00027942,7]
[381431363,1756194647077,-500.0,0.00027945,2]
[381431364,1756194647086,-500.0,0.00027945,2]
[381431365,1756194647096,-500.0,0.00027945,2]
[381431366,1756194647107,-500.0,0.00027946,2]
[381431367,1756194647116,-500.0,0.00027946,2]
[381431369,1756194647126,-500.0,0.00027946,2]
[381431370,1756194647135,-1514.0,0.00027946,2]
[381431371,1756194647145,-500.0,0.00027946,2]
[381431372,1756194647154,-500.0,0.00027946,2]
[381431374,1756194647164,-150.0,0.00027972,2]
[381431375,1756194647173,-825.79892432,0.00027974,2]
[381431376,1756194647183,-1052.48882511,0.00027976,2]
[381431377,1756194647192,-1279.1787259,0.00027978,2]
[381431379,1756194647203,-1505.8686267,0.0002798,2]
[381431380,1756194647212,-1732.55852749,0.00027982,2]
[381431381,1756194647222,-1959.24842828,0.00027984,2]
[381431382,1756194647231,-2185.93832908,0.00027986,2]
[381431383,1756194647241,-2412.62822987,0.00027988,2]
[381431385,1756194647251,-2639.31813067,0.0002799,2]
[381431386,1756194647261,-246.17029613,0.0002799,2]
[381431387,1756194647271,-279.12,0.00028,2]
[381431388,1756194647280,-1800.0,0.00028,29]
[381431390,1756194647290,-923.0,0.00028,2]
[381431391,1756194647300,-1000.0,0.00028,2]
[381431392,1756194647309,-1000000.0,0.00028,2]
[381431393,1756194647319,-166.0,0.00028,2]
[381431394,1756194647329,-165.0,0.00028,2]
[381431396,1756194647338,-331.0,0.00028,2]
[381431397,1756194647349,-174.0,0.00028,2]
[381431398,1756194647359,-250.0,0.00028,2]
[381431399,1756194647369,-250.0,0.00028,2]
[381431401,1756194647378,-302.76992987,0.00028,2]
[381431402,1756194647389,-160.0,0.00028,2]
[381431403,1756194647399,-160.0,0.00028,30]
[381431404,1756194647408,-844.63891918,0.00028,30]
[381431405,1756194647417,-308.95,0.00028,2]
[381431407,1756194647427,-225.15574463,0.00028,2]
[381431408,1756194647440,-35495.62,0.00028,7]
[381431409,1756194647449,-12911.91631476,0.00028,2]
[381431410,1756194647459,-258.2383263,0.00028,2]
[381431412,1756194647469,-160.0,0.00028,30]
[381431413,1756194647479,-844.63891918,0.00028,7]
[381431414,1756194647488,-243.36,0.00028,7]
[381431415,1756194647498,-156.24326294,0.00028,4]
[381431417,1756194647508,-242.96,0.00028,7]
[381431418,1756194647517,-730.1,0.00028,7]
[381431419,1756194647527,-1216.84,0.00028,7]
[381431420,1756194647536,-308.27,0.00028,7]
[381431421,1756194647546,-172.2,0.00028,15]
[381431423,1756194647555,-3046.48,0.00028,7]
[381431424,1756194647564,-1157.4,0.00028,7]
[381431425,1756194647573,-946.01872522,0.00028025,2]
[381431426,1756194647583,-203.0,0.0002806,30]
[381431427,1756194647592,-1000.0,0.00028082,2]
[381431429,1756194647603,-337.94,0.00028082,2]
[381431430,1756194647613,-450.0,0.00028209,6]
[381431431,1756194647622,-1500.0,0.00028216,7]
[381431432,1756194647631,-3000.0,0.00028216,7]
[381431433,1756194647641,-500.0,0.00028219,2]
[381431434,1756194647650,-500.0,0.00028219,2]
[381431435,1756194647659,-500.0,0.00028219,2]
[381431436,1756194647668,-1317.03,0.00028219,7]
[381431437,1756194647677,-500.0,0.0002822,2]
[381431438,1756194647686,-500.0,0.0002822,2]
[381431439,1756194647696,-546.0,0.0002822,2]
[381431440,1756194647705,-1514.0,0.0002822,2]
[381431441,1756194647714,-275.31885085,0.0002822,2]
[381431442,1756194647723,-500.0,0.0002822,2]
[381431443,1756194647732,-2047.31,0.000283,7]
[381431444,1756194647741,-169.22158607,0.00028315,2]
[381431445,1756194647750,-271.0,0.0002833,30]
[381431446,1756194647760,-504.0,0.0002835,4]
[381431447,1756194647769,-676.0,0.0002837,2]
[381431448,1756194647778,-31092.44631105,0.00028384,9]
[381431449,1756194647788,-39050.89,0.000284,2]
[381431451,1756194647797,-500.0,0.00028493,2]
[381431452,1756194647807,-500.0,0.00028493,2]
[381431453,1756194647817,-574.37490696,0.00028493,2]
[381431454,1756194647827,-500.0,0.00028494,2]
[381431455,1756194647838,-500.0,0.00028494,2]
[381431457,1756194647850,-1514.0,0.00028494,2]
[381431458,1756194647860,-500.0,0.00028494,2]
[381431459,1756194647870,-35495.62,0.000285,7]
[381431460,1756194647879,-1692.935858,0.000285,2]
[381431461,1756194647890,-357.6762453,0.00028544,2]
[381431463,1756194647899,-431.42848765,0.00028544,2]
[381431464,1756194647915,-392.0318341,0.00028548,2]
[381431465,1756194647925,-1057.85,0.000286,30]
[381431466,1756194647935,-1588.0,0.000286,2]
[381431468,1756194647945,-384.0,0.0002868,7]
[381431469,1756194647955,-10366.63484887,0.00028699,2]
[381431470,1756194647965,-19794.7029536,0.00028748,30]
[381431473,1756194648033,-500.0,0.00021999,2]
[381431474,1756194648043,-500.0,0.00021999,2]
[381431475,1756194648054,-500.0,0.00021999,2]
[381431476,1756194648064,-6765.86813178,0.00028748,30]
[381431477,1756194648075,-12932.64506319,0.0002876,2]
[381431479,1756194648085,-650.19568502,0.0002876,2]
[381431480,1756194648094,-1100.0,0.00028764,7]
[381431481,1756194648109,-500.0,0.00028767,2]
[381431483,1756194648119,-570.54733801,0.00028767,2]
[381431484,1756194648129,-200.0,0.00028767,2]
[381431485,1756194648139,-200.0,0.00028767,2]
[381431486,1756194648150,-200.0,0.00028767,2]
[381431487,1756194648160,-500.0,0.00028767,2]
[381431489,1756194648171,-501.01906827,0.00028767,2]
[381431490,1756194648181,-1200.0,0.00028767,2]
[381431491,1756194648191,-500.0,0.00028767,2]
[381431492,1756194648201,-500.0,0.00028767,2]
[381431494,1756194648211,-500.83733438,0.00028767,2]
[381431495,1756194648221,-1200.0,0.00028767,2]
[381431496,1756194648231,-502.36192329,0.00028767,2]
[381431497,1756194648241,-500.0,0.00028767,2]
[381431498,1756194648252,-1200.0,0.00028767,2]
[381431500,1756194648263,-500.0,0.00028767,2]
[381431501,1756194648273,-500.0,0.00028767,2]
[381431502,1756194648284,-1600.0,0.00028767,2]
[381431503,1756194648294,-218.20040619,0.00028767,2]
[381431505,1756194648304,-1200.0,0.00028767,2]
[381431506,1756194648315,-500.0,0.00028767,2]
[381431507,1756194648325,-500.0,0.00028767,2]
[381431508,1756194648334,-1600.0,0.00028767,2]
[381431509,1756194648344,-500.0,0.00028767,2]
[381431511,1756194648360,-500.0,0.00028767,2]
[381431512,1756194648370,-1600.0,0.00028767,2]
[381431513,1756194648381,-500.0,0.00028767,2]
[381431514,1756194648391,-500.0,0.00028767,2]
[381431516,1756194648401,-1200.0,0.00028767,2]
[381431517,1756194648411,-500.0,0.00028767,2]
[381431518,1756194648421,-1200.0,0.00028767,2]
[381431519,1756194648431,-1600.0,0.00028767,2]
[381431521,1756194648441,-1200.0,0.00028767,2]
[381431522,1756194648451,-500.0,0.00028767,2]
[381431523,1756194648462,-500.0,0.00028767,2]
[381431524,1756194648475,-1600.0,0.00028767,2]
[381431526,1756194648486,-1200.0,0.00028767,2]
[381431527,1756194648496,-961.38609621,0.00028767,2]
[381431528,1756194648506,-1600.0,0.00028767,2]
[381431529,1756194648516,-500.0,0.00028767,2]
[381431530,1756194648526,-1200.0,0.00028767,2]
[381431532,1756194648537,-500.0,0.00028767,2]
[381431533,1756194648547,-1600.0,0.00028767,2]
[381431534,1756194648556,-1200.0,0.00028767,2]
[381431535,1756194648566,-500.0,0.00028767,2]
[381431536,1756194648576,-1600.0,0.00028767,2]
[381431538,1756194648586,-1200.0,0.00028767,2]
[381431539,1756194648601,-500.0,0.00028767,2]
[381431540,1756194648611,-1200.0,0.00028767,2]
[381431541,1756194648622,-500.0,0.00028767,2]
[381431543,1756194648632,-1600.0,0.00028767,2]
[381431544,1756194648642,-719.62950833,0.00028767,2]
[381431545,1756194648653,-1600.0,0.00028767,2]
[381431546,1756194648663,-500.0,0.00028767,2]
[381431548,1756194648673,-500.0,0.00028767,2]
[381431549,1756194648683,-1600.0,0.00028767,2]
[381431550,1756194648692,-311.49156717,0.00028767,2]
[381431551,1756194648702,-1200.0,0.00028767,2]
[381431552,1756194648712,-500.0,0.00028767,2]
[381431554,1756194648722,-500.0,0.00028767,2]
[381431555,1756194648732,-598.01230956,0.00028767,2]
[381431556,1756194648742,-500.0,0.00028767,2]
[381431557,1756194648751,-810.0,0.00028767,2]
[381431558,1756194648761,-1600.0,0.00028767,2]
[381431560,1756194648772,-500.0,0.00028767,2]
[381431561,1756194648782,-1200.0,0.00028767,2]
[381431562,1756194648792,-500.0,0.00028767,2]
[381431563,1756194648801,-1600.0,0.00028767,2]
[381431565,1756194648811,-1200.0,0.00028767,2]
[381431566,1756194648821,-500.0,0.00028767,2]
[381431567,1756194648832,-1600.0,0.00028767,2]
[381431568,1756194648842,-1200.0,0.00028767,2]
[381431569,1756194648855,-595.11301982,0.00028767,2]
[381431571,1756194648865,-1600.0,0.00028767,2]
[381431575,1756194649002,-1200.0,0.00028767,2]
[381431576,1756194649012,-1600.0,0.00028767,2]
[381431577,1756194649022,-1600.0,0.00028767,2]
[381431578,1756194649032,-1200.0,0.00028767,2]
[381431579,1756194649041,-1200.0,0.00028767,2]
[381431581,1756194649051,-500.7,0.00028767,2]
[381431582,1756194649061,-1600.0,0.00028767,2]
[381431583,1756194649070,-1200.0,0.00028767,2]
[381431584,1756194649080,-1600.0,0.00028767,2]
[381431586,1756194649089,-427.85149818,0.00028767,2]
[381431587,1756194649101,-500.0,0.00028767,2]
[381431588,1756194649111,-401.73873335,0.00028767,2]
[381431589,1756194649120,-1200.0,0.00028767,2]
[381431591,1756194649130,-1200.0,0.00028767,2]
[381431592,1756194649139,-1600.0,0.00028767,2]
[381431593,1756194649148,-500.0,0.00028767,2]
[381431594,1756194649158,-1200.0,0.00028767,2]
[381431595,1756194649168,-1200.0,0.00028767,2]
[381431597,1756194649177,-1600.0,0.00028767,2]
[381431598,1756194649187,-500.0,0.00028767,2]
[381431599,1756194649196,-1200.0,0.00028767,2]
[381431600,1756194649205,-1200.0,0.00028767,2]
[381431602,1756194649215,-500.0,0.00028767,2]
[381431603,1756194649225,-1600.0,0.00028767,2]
[381431604,1756194649235,-1200.0,0.00028767,2]
[381431605,1756194649244,-500.0,0.00028767,2]
[381431606,1756194649253,-1200.0,0.00028767,2]
[381431608,1756194649263,-1200.0,0.00028767,2]
[381431609,1756194649273,-1600.0,0.00028767,2]
[381431610,1756194649282,-680.74271962,0.00028767,2]
[381431611,1756194649292,-1200.0,0.00028767,2]
[381431613,1756194649301,-1200.0,0.00028767,2]
[381431614,1756194649311,-1200.0,0.00028767,2]
[381431615,1756194649320,-500.0,0.00028767,2]
[381431616,1756194649329,-1600.0,0.00028767,2]
[381431618,1756194649338,-500.0,0.00028767,2]
[381431619,1756194649348,-1200.0,0.00028767,2]
[381431620,1756194649358,-1200.0,0.00028767,2]
[381431621,1756194649367,-1200.0,0.00028767,2]
[381431622,1756194649376,-1600.0,0.00028767,2]
[381431624,1756194649385,-1200.0,0.00028767,2]
[381431625,1756194649394,-500.0,0.00028767,2]
[381431626,1756194649403,-1200.0,0.00028767,2]
[381431627,1756194649413,-1200.0,0.00028767,2]
[381431629,1756194649422,-1600.0,0.00028767,2]
[381431630,1756194649432,-1200.0,0.00028767,2]
[381431631,1756194649441,-1200.0,0.00028767,2]
[381431632,1756194649450,-1200.0,0.00028767,2]
[381431633,1756194649459,-1400.0,0.00028767,2]
[381431635,1756194649468,-1600.0,0.00028767,2]
[381431636,1756194649477,-1784.27913463,0.00028767,2]
[381431637,1756194649486,-1200.0,0.00028767,2]
[381431638,1756194649495,-1400.0,0.00028767,2]
[381431640,1756194649505,-2877.52910235,0.00028767,2]
[381431641,1756194649514,-807.36757683,0.00028767,2]
[381431642,1756194649523,-1400.0,0.00028767,2]
[381431643,1756194649532,-1200.0,0.00028767,2]
[381431644,1756194649541,-1400.0,0.00028767,2]
[381431646,1756194649550,-600.0,0.00028767,2]
[381431647,1756194649559,-572.30367332,0.00028767,2]
[381431648,1756194649568,-1400.0,0.00028767,2]
[381431649,1756194649577,-1200.0,0.00028767,2]
[381431651,1756194649586,-1400.0,0.00028767,2]
[381431652,1756194649595,-600.0,0.00028767,2]
[381431653,1756194649606,-1400.0,0.00028767,2]
[381431654,1756194649615,-1200.0,0.00028767,2]
[381431655,1756194649624,-600.0,0.00028767,2]
[381431657,1756194649634,-1400.0,0.00028767,2]
[381431658,1756194649643,-516.76889675,0.00028767,2]
[381431659,1756194649652,-1200.0,0.00028767,2]
[381431660,1756194649661,-600.0,0.00028767,2]
[381431662,1756194649671,-500.0,0.00028767,2]
[381431663,1756194649680,-1400.0,0.00028767,2]
[381431664,1756194649689,-1400.0,0.00028767,2]
[381431665,1756194649698,-600.0,0.00028767,2]
[381431667,1756194649707,-500.0,0.00028767,2]
[381431668,1756194649717,-1400.0,0.00028767,2]
[381431669,1756194649726,-1400.0,0.00028767,2]
[381431670,1756194649735,-600.0,0.00028767,2]
[381431671,1756194649744,-1400.0,0.00028767,2]
[381431673,1756194649753,-1400.0,0.00028767,2]
[381431674,1756194649762,-500.0,0.00028767,2]
[381431675,1756194649771,-166.20884003,0.00028767,2]
[381431676,1756194649781,-600.0,0.00028767,2]
[381431678,1756194649790,-1400.0,0.00028767,2]
[381431679,1756194649800,-1200.0,0.00028767,2]
[381431680,1756194649809,-1400.0,0.00028767,2]
[381431681,1756194649818,-500.0,0.00028767,2]
[381431683,1756194649827,-600.0,0.00028767,2]
[381431684,1756194649836,-1400.0,0.00028767,2]
[381431685,1756194649845,-1400.0,0.00028767,2]
[381431686,1756194649856,-1200.0,0.00028767,2]
[381431687,1756194649865,-179.75368606,0.00028767,2]
[381431689,1756194649874,-500.0,0.00028767,2]
[381431690,1756194649883,-600.0,0.00028767,2]
[381431691,1756194649893,-500.0,0.00028767,2]
[381431692,1756194649903,-1400.0,0.00028767,2]
[381431694,1756194649914,-1400.0,0.00028767,2]
[381431695,1756194649923,-1200.0,0.00028767,2]
[381431696,1756194649932,-600.0,0.00028767,2]
[381431697,1756194649942,-500.0,0.00028767,2]
[381431698,1756194649951,-1400.0,0.00028767,2]
[381431700,1756194649960,-500.0,0.00028767,2]
[381431701,1756194649970,-992.15841174,0.00028767,2]
[381431702,1756194649981,-1200.0,0.00028767,2]
[381431703,1756194649991,-600.0,0.00028767,2]
[381431705,1756194650001,-500.0,0.00028767,2]
[381431706,1756194650011,-500.0,0.00028767,2]
[381431707,1756194650020,-997.76189659,0.00028767,2]
[381431708,1756194650030,-1400.0,0.00028767,2]
[381431710,1756194650039,-1200.0,0.00028767,2]
[381431711,1756194650048,-500.0,0.00028767,2]
[381431712,1756194650057,-215.98513464,0.00028767,2]
[381431713,1756194650066,-1400.0,0.00028767,2]
[381431714,1756194650076,-500.0,0.00028767,2]
[381431716,1756194650086,-500.0,0.00028767,2]
[381431717,1756194650096,-500.0,0.00028767,2]
[381431718,1756194650106,-1400.0,0.00028767,2]
[381431719,1756194650115,-600.0,0.00028767,2]
[381431720,1756194650123,-1200.0,0.00028767,2]